fUST/lending_fUST_20250617
["ID","MTS","AMOUNT","RATE_DAILY","PERIOD"]
[366194912,1750109442859,-460.0,0.00024383,4]
[366194913,1750109442868,-206.16459621,0.00024383,4]
[366194914,1750109442880,-352.13540379,0.00024383,4]
[366194915,1750109442890,-1546.06036,0.00024401,3]
[366194916,1750109442899,-916.5,0.00024593,3]
[366194917,1750109442909,-458.26,0.00024593,3]
[366194918,1750109442919,-1833.02,0.00024603,3]
[366194919,1750109442932,-1923.31990803,0.0002465,2]
[366194920,1750109442944,-12077.55612896,0.0002465,2]
[366194921,1750109442955,-1603.64636039,0.0002465,2]
[366194923,1750109442968,-297.33576601,0.0002465,2]
[366194925,1750109442980,-800.15794755,0.0002465,2]
[366194927,1750109442990,-153.0,0.00024654,2]
[366194928,1750109443002,-153.0,0.00024654,2]
[366194929,1750109443012,-81.7148831,0.00024654,2]
[366194930,1750109443058,-71.2851169,0.00024654,2]
[366194931,1750109443067,-153.0,0.00024654,2]
[366194932,1750109443076,-153.0,0.00024654,2]
[366194933,1750109443086,-153.0,0.00024655,2]
[366194934,1750109443095,-153.0,0.00024655,2]
[366194935,1750109443104,-153.0,0.00024655,2]
[366194936,1750109443113,-153.0,0.00024655,2]
[366194937,1750109443123,-153.0,0.00024655,2]
[366194938,1750109443132,-153.0,0.00024655,2]
[366194939,1750109443141,-153.0,0.00024655,2]
[366194940,1750109443151,-153.0,0.00024655,2]
[366194941,1750109443160,-153.0,0.00024655,2]
[366194942,1750109443170,-153.0,0.00024655,2]
[366194943,1750109443180,-37.2161799,0.00024655,2]
[366194945,1750109443192,-115.7838201,0.00024655,2]
[366194947,1750109443202,-153.0,0.00024655,2]
[366194949,1750109443211,-153.0,0.00024656,2]
[366194951,1750109443220,-119.4637197,0.00024656,2]
[366194964,1750109443413,-33.5362803,0.00024656,2]
[366194965,1750109443423,-153.0,0.00024656,2]
[366194966,1750109443434,-153.0,0.00024656,2]
[366194967,1750109443443,-153.0,0.00024656,2]
[366194968,1750109443454,-460.0,0.00024656,4]
[366194969,1750109443463,-460.0,0.00024656,4]
[366194970,1750109443473,-460.0,0.00024656,4]
[366194971,1750109443483,-153.0,0.00024656,2]
[366194972,1750109443493,-460.0,0.00024657,4]
[366194973,1750109443502,-184.95241823,0.00024657,4]
[366194974,1750109443512,-460.0,0.00024657,4]
[366194975,1750109443521,-460.0,0.00024657,4]
[366194976,1750109443532,-456.18642403,0.00024657,4]
[366194977,1750109443541,-313.08803681,0.00024657,4]
[366194978,1750109443551,-460.0,0.00024657,4]
[366194979,1750109443560,-558.3,0.00024657,4]
[366194980,1750109443570,-218.46,0.00024666,4]
[366194981,1750109443579,-500.0,0.00024666,4]
[366194982,1750109443590,-151.0,0.00024728,7]
[366194984,1750109443600,-263.17,0.0002479,10]
[366194986,1750109443610,-500.0,0.00024799,4]
[366194988,1750109443620,-2000.0,0.000248,2]
[366194990,1750109443630,-2000.0,0.000248,2]
[366194992,1750109443639,-151.0,0.000248,2]
[366194994,1750109443649,-323.61,0.000248,31]
[366194996,1750109443658,-323.61,0.000248,31]
[366194998,1750109443668,-323.61,0.000248,31]
[366194999,1750109443677,-323.61,0.000248,31]
[366195000,1750109443687,-323.61,0.000248,31]
[366195001,1750109443696,-323.61,0.000248,31]
[366195002,1750109443706,-323.61,0.000248,31]
[366195003,1750109443715,-323.61,0.000248,31]
[366195004,1750109443724,-323.61,0.000248,31]
[366195005,1750109443734,-323.61,0.000248,31]
[366195006,1750109443743,-323.61,0.000248,31]
[366195007,1750109443754,-323.61,0.000248,31]
[366195008,1750109443763,-323.61,0.000248,31]
[366195009,1750109443772,-323.61,0.000248,31]
[366195010,1750109443781,-323.61,0.000248,31]
[366195011,1750109443791,-323.61,0.000248,31]
[366195012,1750109443801,-4074.47003438,0.000248,2]
[366195022,1750109446492,-210.51923683,0.00020608,2]
[366195024,1750109446502,-365.4091647,0.00024,2]
[366195026,1750109446512,-1552.689992,0.000248,2]
[366195051,1750109533672,169.648938,0.00013699,2]
[366195139,1750110632796,-298.4608159,0.00020153,2]
[366195141,1750110632806,-169.648938,0.00020187,2]
[366195143,1750110632816,-92.10543562,0.00020609,2]
[366195145,1750110632828,-907.89456438,0.00020609,2]
[366195148,1750110632837,-1200.0,0.00020729,2]
[366195150,1750110632847,-300.0,0.0002073,2]
[366195152,1750110632858,-300.0,0.0002073,2]
[366195154,1750110632867,-300.0,0.0002073,2]
[366195156,1750110632877,-19.38096688,0.0002073,2]
[366195158,1750110632890,-191.61903312,0.0002073,2]
[366195160,1750110632900,-300.0,0.0002073,2]
[366195162,1750110632910,-500.0,0.00020731,2]
[366195164,1750110632920,-550.0,0.00020731,2]
[366195166,1750110632929,-22716.84024924,0.00020732,2]
[366195168,1750110632945,-262.5,0.00020732,2]
[366195169,1750110632956,-951.40894554,0.00020732,2]
[366195565,1750110638475,-585.93569446,0.00020732,2]
[366195567,1750110638488,-383.31511076,0.00020732,2]
[366195568,1750110638498,-209.1897552,0.00020829,2]
[366195569,1750110638532,-500.0,0.00020829,2]
[366195602,1750110643571,-719.7902448,0.00020829,2]
[366195603,1750110643582,-175.188,0.00021122,2]
[366195604,1750110643592,-500.0,0.00021122,2]
[366195605,1750110643601,-500.0,0.00021785,2]
[366195606,1750110643611,-500.0,0.00021785,2]
[366195607,1750110643622,-226.45563654,0.00021785,2]
[366195609,1750110643644,-500.0,0.00021785,2]
[366195611,1750110643656,-500.0,0.00021785,2]
[366195613,1750110643668,-424.54874296,0.00021786,2]
[366195615,1750110643678,-160.0,0.00021786,2]
[366195616,1750110643688,-845.47092152,0.00021786,2]
[366195617,1750110643698,-213.36025772,0.00021786,2]
[366195619,1750110643709,-160.0,0.00021786,2]
[366195620,1750110643719,-229.90125484,0.00021807,2]
[366195622,1750110643729,-160.0,0.00021807,2]
[366195623,1750110643739,-500.89279523,0.000219,2]
[366195624,1750110643750,-500.0,0.000219,2]
[366195625,1750110643760,-4479.458,0.00021916,2]
[366195626,1750110643771,-1000.0,0.00021916,2]
[366195628,1750110643782,-1000.0,0.00021916,2]
[366195629,1750110643792,-525.45,0.00021916,2]
[366195630,1750110643803,-586.99154412,0.00021917,4]
[366195631,1750110643813,-370.0,0.00021917,2]
[366195632,1750110643823,-460.0,0.00021917,4]
[366195633,1750110643834,-460.0,0.00021917,4]
[366195634,1750110643844,-460.0,0.00021917,4]
[366195635,1750110643854,-460.0,0.00021982,4]
[366195636,1750110643864,-460.0,0.00021982,2]
[366195637,1750110643874,-500.0,0.00021982,4]
[366195638,1750110643884,-204.72,0.00021982,4]
[366195639,1750110643895,-219.31,0.0002199,10]
[366195640,1750110643906,-182.76,0.0002199,10]
[366195641,1750110643916,-152.3,0.0002199,10]
[366195642,1750110643926,-160.0,0.00021994,2]
[366195643,1750110643936,-76600.0,0.00022,2]
[366195644,1750110643946,-500.0,0.00022011,2]
[366195645,1750110643956,-500.0,0.00022011,2]
[366195646,1750110643966,-500.0,0.00022011,2]
[366195647,1750110643976,-500.67063591,0.00022033,2]
[366195648,1750110643986,-265.21500939,0.00022044,2]
[366195649,1750110643996,-500.0,0.00022044,2]
[366195650,1750110644006,-500.0,0.00022044,2]
[366195651,1750110644016,-500.0,0.0002215,2]
[366195652,1750110644026,-507.7224305,0.0002215,2]
[366195653,1750110644036,-250.0,0.00022168,2]
[366195654,1750110644048,-761.53,0.00022168,10]
[366195655,1750110644057,-502.21431889,0.00022178,2]
[366195656,1750110644068,-513.20256369,0.00022178,2]
[366195657,1750110644078,-500.0,0.00022178,2]
[366195658,1750110644089,-502.10807726,0.00022178,2]
[366195659,1750110644099,-501.55754041,0.00022178,2]
[366195660,1750110644109,-501.53825745,0.00022178,2]
[366195661,1750110644119,-500.0,0.00022178,2]
[366195662,1750110644130,-500.24466392,0.00022178,2]
[366195663,1750110644141,-500.09465065,0.00022178,2]
[366195664,1750110644151,-505.59852906,0.00022178,2]
[366195665,1750110644161,-460.0,0.00022191,4]
[366195666,1750110644171,-471.98590608,0.00022191,4]
[366195667,1750110644181,-460.0,0.00022191,4]
[366195668,1750110644191,-460.0,0.00022256,4]
[366195669,1750110644202,-460.0,0.00022256,2]
[366195670,1750110644212,-500.0,0.00022427,2]
[366195671,1750110644222,-500.0,0.00022427,2]
[366195672,1750110644232,-506.63167731,0.00022427,2]
[366195673,1750110644243,-460.0,0.00022465,4]
[366195674,1750110644259,-460.0,0.00022465,4]
[366195675,1750110644270,-500.0,0.00022499,4]
[366195676,1750110644280,-9999.99999901,0.000225,4]
[366195677,1750110644291,-500.0,0.0002253,2]
[366195678,1750110644302,-505.67096782,0.0002253,2]
[366195679,1750110644314,-500.0,0.0002253,2]
[366195680,1750110644324,-156.57663905,0.0002253,2]
[366195681,1750110644335,-500.0,0.0002253,2]
[366195682,1750110644344,-460.0,0.0002253,4]
[366195683,1750110644356,-460.0,0.0002253,2]
[366195684,1750110644366,-300.0,0.00022556,2]
[366195685,1750110644376,-420.0,0.00022556,2]
[366195686,1750110644387,-1000.0,0.00022559,2]
[366195687,1750110644398,-500.0,0.00022592,2]
[366195688,1750110644408,-460.0,0.00022603,4]
[366195689,1750110644419,-460.0,0.00022603,4]
[366195690,1750110644429,-1227.0,0.00022662,2]
[366195691,1750110644439,-2857.97,0.00022723,2]
[366195692,1750110644449,-460.0,0.00022739,4]
[366195693,1750110644459,-460.0,0.00022739,4]
[366195694,1750110644468,-460.0,0.00022804,4]
[366195695,1750110644478,-460.0,0.00022876,4]
[366195696,1750110644488,-199.19747892,0.00022876,4]
[366195697,1750110644498,-500.0,0.00023,3]
[366195698,1750110644508,-500.0,0.00023,3]
[366195699,1750110644518,-500.0,0.00023,3]
[366195700,1750110644528,-500.0,0.00023,3]
[366195701,1750110644538,-500.0,0.00023,3]
[366195702,1750110644548,-500.0,0.00023,3]
[366195703,1750110644557,-500.0,0.00023,3]
[366195704,1750110644567,-500.0,0.00023,3]
[366195705,1750110644577,-460.0,0.00023013,4]
[366195706,1750110644587,-460.0,0.00023013,4]
[366195707,1750110644597,-365.4091647,0.00023041,2]
[366195708,1750110644607,-365.4091647,0.00023041,2]
[366195709,1750110644617,-365.4091647,0.00023041,2]
[366195710,1750110644627,-192.52258843,0.00023078,2]
[366195711,1750110644636,-460.0,0.00023078,4]
[366195712,1750110644647,-168.0,0.00023095,2]
[366195713,1750110644657,-460.0,0.0002315,4]
[366195714,1750110644667,-432.78,0.00023287,4]
[366195715,1750110644677,-460.0,0.00023287,4]
[366195716,1750110644687,-500.0,0.00023314,2]
[366195717,1750110644698,-511.80891055,0.00023352,4]
[366195718,1750110644708,-160.0,0.00023364,2]
[366195719,1750110644719,-460.0,0.00023424,4]
[366195720,1750110644728,-342.12358257,0.00023561,4]
[366195721,1750110644738,-500.0,0.00023653,4]
[366195722,1750110644748,-500.0,0.00023653,2]
[366195723,1750110644759,-151.0,0.00023654,2]
[366195724,1750110644769,-500.0,0.00023654,2]
[366195725,1750110644779,-500.0,0.00023654,2]
[366195726,1750110644790,-5000.0,0.00023654,2]
[366195727,1750110644800,-1688.0,0.00023654,2]
[366195728,1750110644810,-500.0,0.00023654,2]
[366195729,1750110644820,-207.4,0.00023654,2]
[366195730,1750110644830,-500.0,0.00023654,2]
[366195731,1750110644840,-500.0,0.00023654,2]
[366195732,1750110644850,-500.0,0.00023654,2]
[366195733,1750110644860,-500.0,0.00023654,2]
[366195734,1750110644870,-500.0,0.00023654,2]
[366195735,1750110644882,-500.0,0.00023654,2]
[366195736,1750110644892,-500.0,0.00023654,2]
[366195737,1750110644902,-500.0,0.00023654,2]
[366195738,1750110644912,-500.0,0.00023654,2]
[366195739,1750110644922,-500.0,0.00023654,2]
[366195740,1750110644932,-500.0,0.00023654,2]
[366195741,1750110644943,-500.0,0.00023654,2]
[366195742,1750110644952,-460.0,0.00023698,4]
[366195743,1750110644963,-168.0,0.000237,2]
[366195744,1750110644973,-365.4091647,0.00023941,2]
[366195745,1750110644982,-460.0,0.00023972,4]
[366195746,1750110644992,-586.0,0.00024,2]
[366195747,1750110645004,-365.4091647,0.00024,2]
[366195748,1750110645014,-365.4091647,0.00024,2]
[366195749,1750110645023,-365.4091647,0.00024,2]
[366195750,1750110645034,-365.4091647,0.00024,2]
[366195751,1750110645044,-799.1225024,0.00024,2]
[366195752,1750110645054,-365.4091647,0.00024,2]
[366195753,1750110645064,-365.4091647,0.00024,2]
[366195754,1750110645074,-365.4091647,0.00024,2]
[366195755,1750110645084,-365.4091647,0.00024,2]
[366195756,1750110645093,-168.0,0.00024008,2]
[366195757,1750110645104,-377.1560245,0.0002405,2]
[366195758,1750110645114,-460.0,0.00024246,4]
[366195759,1750110645123,-500.0,0.00024282,4]
[366195760,1750110645133,-168.0,0.00024283,2]
[366195761,1750110645143,-1325.194594,0.00024303,3]
[366195762,1750110645154,-964.0,0.00024327,2]
[366195763,1750110645164,-247.364,0.00024327,2]
[366195764,1750110645174,-168.0,0.00024363,2]
[366195765,1750110645185,-460.0,0.0002452,4]
[366195766,1750110645195,-274.0,0.00024566,2]
[366195767,1750110645206,-4286.95,0.00024616,2]
[366195768,1750110645215,-153.0,0.00024649,2]
[366195769,1750110645371,-153.0,0.00024649,2]
[366195770,1750110645384,-153.0,0.00024649,2]
[366195771,1750110645394,-153.0,0.00024649,2]
[366195772,1750110645405,-153.0,0.00024649,2]
[366195773,1750110645415,-153.0,0.00024649,2]
[366195774,1750110645426,-153.0,0.00024649,2]
[366195775,1750110645435,-153.0,0.00024649,2]
[366195776,1750110645445,-153.0,0.00024649,2]
[366195777,1750110645455,-153.0,0.0002465,2]
[366195778,1750110645465,-153.0,0.0002465,2]
[366195779,1750110645475,-153.0,0.0002465,2]
[366195780,1750110645485,-153.0,0.0002465,2]
[366195781,1750110645495,-153.0,0.0002465,2]
[366195782,1750110645505,-800.0,0.00024658,2]
[366195783,1750110645515,-203.24436406,0.00024671,2]
[366195784,1750110645525,-800.0,0.00024677,2]
[366195785,1750110645535,-642.34,0.00024682,6]
[366195786,1750110645545,-151.0,0.000247,8]
[366195787,1750110645556,-5188.43487911,0.00024712,2]
[366195788,1750110645566,-160.0,0.00024733,2]
[366195789,1750110645576,-800.0,0.00024754,2]
[366195790,1750110645586,-328.63567464,0.00024778,2]
[366195791,1750110645596,-800.0,0.00024785,2]
[366195792,1750110645607,-168.0,0.00024791,2]
[366195793,1750110645617,-460.0,0.00024794,4]
[366195794,1750110645627,-246.44,0.00024799,4]
[366195795,1750110645638,-2000.0,0.000248,2]
[366195796,1750110645649,-2000.0,0.000248,2]
[366195797,1750110645659,-271.86,0.000248,31]
[366195798,1750110645669,-271.86,0.000248,31]
[366195799,1750110645678,-271.86,0.000248,31]
[366195800,1750110645689,-271.86,0.000248,31]
[366195801,1750110645700,-271.86,0.000248,31]
[366195802,1750110645710,-271.86,0.000248,31]
[366195803,1750110645733,-271.86,0.000248,31]
[366195804,1750110645743,-271.86,0.000248,31]
[366195805,1750110645753,-271.86,0.000248,31]
[366195806,1750110645764,-271.86,0.000248,31]
[366195807,1750110645776,-271.86,0.000248,31]
[366195808,1750110645786,-271.86,0.000248,31]
[366195809,1750110645797,-271.86,0.000248,31]
[366195810,1750110645809,-271.86,0.000248,31]
[366195811,1750110645820,-271.86,0.000248,31]
[366195812,1750110645831,-271.86,0.000248,31]
[366195813,1750110645841,-17623.0354489,0.000248,2]
[366195814,1750110645852,-169.81450728,0.00024829,2]
[366195815,1750110645863,-4804.19071849,0.00024829,2]
[366195816,1750110645873,-1298.25289804,0.00024835,2]
[366195817,1750110645884,-168.0,0.00024838,2]
[366195818,1750110645895,-4804.19071847,0.00024843,2]
[366195819,1750110645907,-4804.19071847,0.00024856,2]
[366195820,1750110645918,-500.0,0.00024873,2]
[366195821,1750110645930,-1281.14742325,0.00024878,13]
[366195822,1750110645940,-642.34,0.00024882,5]
[366195823,1750110645951,-5874.34514964,0.0002489,2]
[366195824,1750110645962,-6879.54965001,0.000249,2]
[366195825,1750110645972,-9065.13362967,0.000249,2]
[366195826,1750110645982,-352041.87569971,0.000249,2]
[366195827,1750110646000,-6382.0709392,0.000249,2]
[366195845,1750110841137,160.720046,0.00013699,2]
[366195847,1750110919587,259.596518,0.00024657,120]
[366195899,1750111831956,-2643.8350304,0.000203,2]
[366195900,1750111831967,-160.720046,0.00020548,2]
[366195901,1750111831976,-1000.0,0.00020731,2]
[366195902,1750111831985,-1200.0,0.00020775,2]
[366195903,1750111831995,-492.99993457,0.00020776,2]
[366195904,1750111832004,-175.188,0.00020776,2]
[366195905,1750111832014,-300.0,0.00020776,2]
[366195906,1750111832024,-300.0,0.00020776,2]
[366195907,1750111832033,-300.0,0.00020776,2]
[366195908,1750111832044,-18450.59885438,0.00020777,2]
[366195931,1750111837751,-718.12120829,0.00020777,2]
[366195932,1750111837808,-5731.27993733,0.00020777,2]
[366195933,1750111837818,-193.72298252,0.00021035,2]
[366195935,1750111837827,-500.0,0.00021122,2]
[366195937,1750111837837,-1494.9,0.00021128,2]
[366195939,1750111837847,-713.55979369,0.00021401,2]
[366195941,1750111837857,-213.36025772,0.00021786,2]
[366195943,1750111837866,-229.90125484,0.00021786,2]
[366195945,1750111837876,-845.47092152,0.00021786,2]
[366195947,1750111837886,-160.0,0.00021786,2]
[366195949,1750111837895,-302.87530797,0.000219,2]
[366195951,1750111837905,-500.24466392,0.000219,2]
[366195953,1750111837923,-501.53825745,0.000219,2]
[366195954,1750111837938,-501.55754041,0.000219,2]
[366195955,1750111837949,-500.0,0.000219,2]
[366195956,1750111837959,-505.59852906,0.000219,2]
[366195957,1750111837968,-502.21431889,0.000219,2]
[366195958,1750111837978,-513.20256369,0.000219,2]
[366195959,1750111837988,-500.09465065,0.000219,2]
[366195960,1750111837998,-502.10807726,0.000219,2]
[366195961,1750111838007,-14628.62041,0.00021916,2]
[366195962,1750111838018,-1000.0,0.00021916,2]
[366195963,1750111838027,-460.0,0.00021917,4]
[366195964,1750111838037,-370.0,0.00021917,2]
[366195965,1750111838047,-218.46,0.00021917,4]
[366195966,1750111838056,-460.96160819,0.00021917,4]
[366195967,1750111838067,-178.56666777,0.00021917,4]
[366195968,1750111838077,-336.42725112,0.00021917,4]
[366195969,1750111838091,-123.57274888,0.00021917,4]
[366195970,1750111838100,-460.0,0.00021917,4]
[366195971,1750111838111,-184.95241823,0.00021917,4]
[366195972,1750111838122,-160.30176907,0.00021917,4]
[366196517,1750111845803,-340.9707566,0.00020776,2]
[366196518,1750111845813,-160.0,0.00021786,2]
[366196519,1750111845823,-299.69823093,0.00021917,4]
[366196520,1750111845833,-460.0,0.00021917,4]
[366196521,1750111845843,-460.0,0.00021917,4]
[366196522,1750111845853,-460.0,0.00021917,4]
[366196523,1750111845863,-460.0,0.00021917,4]
[366196524,1750111845873,-456.18642403,0.00021917,4]
[366196525,1750111845883,-460.0,0.00021917,4]
[366196526,1750111845893,-460.0,0.00021917,2]
[366196527,1750111845902,-313.08803681,0.00021917,4]
[366196528,1750111845913,-460.0,0.00021917,4]
[366196529,1750111845922,-500.0,0.00021917,4]
[366196530,1750111845937,-101.45213721,0.00021917,4]
[366196531,1750111845950,-120.82067118,0.00021917,4]
[366196532,1750111845960,-460.0,0.00021917,4]
[366196533,1750111845970,-500.0,0.00021974,2]
[366196534,1750111845980,-500.0,0.00021974,2]
[366196535,1750111845990,-361.45563654,0.00021974,2]
[366196536,1750111846000,-500.0,0.00021974,2]
[366196537,1750111846010,-500.0,0.00021974,2]
[366196538,1750111846022,-387.11258371,0.00021975,2]
[366197351,1750111866560,160.720046,0.00013699,2]
[366197356,1750112195304,-1000.0,0.00025,120]
[366197357,1750112195331,-1000.0,0.00025,120]
[366197358,1750112195346,-13000.0,0.00025,120]
[366197380,1750112520138,196.4126756,0.00019713,2]
[366198085,1750113046103,-174.978752,0.0002059,2]
[366198087,1750113046113,-300.0,0.00020629,2]
[366198089,1750113046127,-1200.0,0.00020629,2]
[366198091,1750113046137,-398.75561234,0.0002063,2]
[366198093,1750113046147,-300.0,0.0002063,2]
[366198095,1750113046156,-166.0,0.0002063,2]
[366198097,1750113046166,-300.0,0.0002063,2]
[366198099,1750113046176,-1613.58326238,0.00020631,2]
[366198105,1750113046216,-23286.41673762,0.00020631,2]
[366198107,1750113046225,-155.4999051,0.00020644,2]
[366198109,1750113046235,-105.37932107,0.00020743,2]
[366198111,1750113046251,-72.35067893,0.00020743,2]
[366198113,1750113046261,-2567.75183691,0.00020744,2]
[366199456,1750113110987,150.0,0.000189,2]
[366199458,1750113164400,160.720046,0.00013699,2]
[366199465,1750113346998,1426.9916122,0.000245,120]
[366199466,1750113412068,150.0,0.000189,2]
[366199881,1750114238045,-2221.4450456,0.00020041,2]
[366199882,1750114238057,-300.0,0.00020425,2]
[366199883,1750114238068,-300.0,0.00020425,2]
[366199884,1750114238079,-191.0,0.00020425,2]
[366199885,1750114238090,-300.0,0.00020425,2]
[366199886,1750114238101,-1200.0,0.00020426,2]
[366199889,1750114238111,-7880.9987288,0.00020427,2]
[366199890,1750114238121,-272.70477,0.00020452,2]
[366199891,1750114238132,-425.09696969,0.0002046,2]
[366199892,1750114238142,-1000.0,0.0002063,2]
[366199893,1750114238153,-176.394,0.00020663,2]
[366199894,1750114238164,-391.71865128,0.00020663,2]
[366199896,1750114238175,-21435.47026597,0.00020664,2]
[366199899,1750114238188,-3464.52973403,0.00020664,2]
[366199900,1750114238198,-525.45,0.0002089,2]
[366199902,1750114238212,-1528.09,0.00021117,2]
[366199903,1750114238223,-600.0,0.00021122,2]
[366199904,1750114238234,-168.0,0.0002135,2]
[366199905,1750114238245,-537.99817003,0.00021661,2]
[366199906,1750114238256,-845.47092152,0.00021754,2]
[366199907,1750114238266,-160.0,0.00021754,2]
[366199908,1750114238276,-160.0,0.00021754,2]
[366199909,1750114238286,-160.0,0.00021754,2]
[366199910,1750114238296,-12537.89035583,0.00021754,2]
[366199911,1750114238306,-415.95416705,0.000219,2]
[366199912,1750114238316,-586.99154412,0.00021917,4]
[366199913,1750114238327,-440.0,0.00021917,4]
[366199914,1750114238338,-460.0,0.00021917,2]
[366199916,1750114238351,-460.0,0.00021917,4]
[366199918,1750114238361,-275.61159438,0.00021917,4]
[366199921,1750114238372,-460.0,0.00021917,4]
[366199923,1750114238383,-460.0,0.00021917,2]
[366199925,1750114238394,-500.0,0.00021917,4]
[366199927,1750114238403,-500.0,0.00021917,4]
[366199928,1750114238414,-500.0,0.00021917,4]
[366199929,1750114238425,-460.0,0.00021917,4]
[366199930,1750114238436,-94.0135131,0.00021917,4]
[366199933,1750114238591,-365.9864869,0.00021917,4]
[366199934,1750114238601,-204.72,0.00021917,4]
[366199935,1750114238611,-460.0,0.00021917,4]
[366199936,1750114238621,-460.0,0.00021917,4]
[366199937,1750114238632,-460.0,0.00021917,4]
[366199938,1750114238642,-160.720046,0.00021918,2]
[366199939,1750114238652,-168.0,0.00021922,2]
[366199940,1750114238662,-500.0,0.00021969,2]
[366199941,1750114238672,-500.0,0.00021969,2]
[366199942,1750114238682,-500.0,0.00021969,2]
[366199943,1750114238692,-500.0,0.00021969,2]
[366199944,1750114238706,-510.88393211,0.00021969,2]
[366199945,1750114238716,-229.90125484,0.0002197,2]
[366199946,1750114238726,-213.36025772,0.0002197,2]
[366199947,1750114238737,-612.88741629,0.00021973,2]
[366199948,1750114238752,-396.68944584,0.00021973,2]
[366199949,1750114238762,-500.0,0.00021973,2]
[366199950,1750114238773,-502.25716102,0.00021973,2]
[366199951,1750114238783,-500.89279523,0.00021973,2]
[366199952,1750114238793,-500.0,0.00021973,2]
[366199953,1750114238803,-207.0949499,0.00021975,2]
[366199954,1750114238814,-189.95,0.0002199,10]
[366199955,1750114238824,-160.0,0.00021999,2]
[366199956,1750114238835,-505.29982678,0.00021999,2]
[366199957,1750114238845,-500.0,0.00021999,4]
[366199958,1750114238855,-500.0,0.00021999,4]
[366199959,1750114238865,-246.44,0.00021999,4]
[366199960,1750114238876,-500.0,0.00021999,2]
[366199961,1750114238886,-31079.69092766,0.00022,2]
[366199962,1750114238900,-11995.88582359,0.00022,2]
[366199963,1750114238912,-14907.61210367,0.00022,2]
[366199964,1750114238924,-4929.324603,0.00022,2]
[366199965,1750114238936,-700.05857372,0.00022,2]
[366200032,1750114240633,-5162.84118624,0.00022,2]
[366200258,1750114243239,-275.5607214,0.00022,2]
[366200261,1750114243253,-7549.02606072,0.00022,2]
[366200263,1750114243265,-386.53261844,0.00022,2]
[366200266,1750114243275,-598.5313621,0.00022,2]
[366200268,1750114243286,-183.0,0.00022,2]
[366200271,1750114243296,-365.4091647,0.00022082,2]
[366200274,1750114243307,-365.4091647,0.00022082,2]
[366200277,1750114243317,-365.4091647,0.00022082,2]
[366200280,1750114243328,-365.4091647,0.00022082,2]
[366200283,1750114243338,-365.4091647,0.00022082,2]
[366200286,1750114243352,-365.4091647,0.00022082,2]
[366200288,1750114243363,-365.4091647,0.00022082,2]
[366200290,1750114243373,-365.4091647,0.00022082,2]
[366200292,1750114243384,-365.4091647,0.00022082,2]
[366200294,1750114243395,-365.4091647,0.00022082,2]
[366200296,1750114243406,-365.4091647,0.00022082,2]
[366200298,1750114243417,-365.4091647,0.00022082,2]
[366200300,1750114243429,-365.4091647,0.00022082,2]
[366200302,1750114243439,-433.7133377,0.00022082,2]
[366200304,1750114243450,-460.0,0.00022191,2]
[366200307,1750114243465,-460.0,0.00022191,4]
[366200309,1750114243477,-460.0,0.00022191,4]
[366200311,1750114243487,-460.0,0.00022191,2]
[366200313,1750114243498,-460.0,0.00022191,4]